lending/lending_fUSD_20250808
["ID","MTS","AMOUNT","RATE_DAILY","PERIOD"]
[377921414,1754613192751,-1031.22,0.00023561,2]
[377921415,1754613192761,-591.29,0.00023561,2]
[377921416,1754613192771,-1239.8,0.00023561,2]
[377921417,1754613192781,-419.72,0.00023561,2]
[377921418,1754613192791,-433.91,0.00023561,2]
[377921419,1754613192802,-765.3,0.00023561,2]
[377921420,1754613192811,-1091.91,0.00023561,2]
[377921421,1754613192821,-718.67,0.00023561,2]
[377921422,1754613192831,-400.0,0.00023561,2]
[377921423,1754613192841,-942.73,0.00023561,2]
[377921424,1754613192851,-400.0,0.00023561,2]
[377921425,1754613192861,-655.59,0.00023561,2]
[377921426,1754613192871,-549.44,0.00023561,2]
[377921427,1754613192883,-706.48,0.00023561,2]
[377921428,1754613192893,-798.23,0.00023561,2]
[377921429,1754613192903,-1153.34,0.00023561,2]
[377921430,1754613192913,-1177.75,0.00023561,2]
[377921431,1754613192924,-549.94,0.00023561,2]
[377921432,1754613192934,-560.12,0.00023561,2]
[377921433,1754613192944,-819.45,0.00023561,2]
[377921434,1754613192956,-895.98,0.00023561,2]
[377921435,1754613192966,-472.38,0.00023561,2]
[377921436,1754613192976,-804.91,0.00023561,2]
[377921437,1754613192986,-638.56,0.00023561,2]
[377921438,1754613192996,-1258.89,0.00023561,2]
[377921439,1754613193005,-225.54866687,0.00023561,2]
[377921440,1754613193015,-593.81,0.00023561,2]
[377921441,1754613193025,-622.14,0.00023561,2]
[377921442,1754613193035,-352.152162,0.00023561,2]
[377921443,1754613193046,-352.152162,0.00023561,2]
[377921444,1754613193055,-1287.29,0.00023561,2]
[377921445,1754613193065,-1105.48,0.00023561,2]
[377921446,1754613193074,-1707.57,0.00023561,2]
[377921447,1754613193084,-1063.27,0.00023561,2]
[377921448,1754613193093,-1515.17,0.00023561,2]
[377921449,1754613193103,-1621.03,0.00023561,2]
[377921450,1754613193113,-400.0,0.00023561,2]
[377921451,1754613193123,-420.834801,0.00023561,2]
[377921452,1754613193133,-420.834801,0.00023561,2]
[377921453,1754613193142,-400.0,0.00023561,2]
[377921454,1754613193153,-400.0,0.00023561,2]
[377921455,1754613193163,-1622.23,0.00023561,2]
[377921456,1754613193174,-400.0,0.00023561,2]
[377921457,1754613193183,-233.24998126,0.00023561,2]
[377921458,1754613193193,-1480.91,0.00023561,2]
[377921459,1754613193203,-577.01,0.00023561,2]
[377921460,1754613193214,-400.0,0.00023561,2]
[377921461,1754613193224,-877.01,0.00023561,2]
[377921462,1754613193235,-400.0,0.00023561,2]
[377921463,1754613193245,-981.54,0.00023561,2]
[377921464,1754613193255,-400.0,0.00023561,2]
[377921465,1754613193264,-1390.26,0.00023561,2]
[377921466,1754613193273,-230.12,0.00023561,2]
[377921467,1754613193284,-1312.79,0.00023561,2]
[377921468,1754613193295,-1040.41,0.00023561,2]
[377921469,1754613193305,-447.12,0.00023561,2]
[377921470,1754613193315,-246.791616,0.00023561,2]
[377921471,1754613193327,-246.791616,0.00023561,2]
[377921472,1754613193338,-1460.09,0.00023561,2]
[377921473,1754613193349,-446.5,0.00023561,2]
[377921474,1754613193360,-783.24,0.00023561,2]
[377921475,1754613193369,-680.12,0.00023561,2]
[377921476,1754613193380,-400.0,0.00023561,2]
[377921477,1754613193390,-806.42,0.00023561,2]
[377921478,1754613193400,-998.91,0.00023561,2]
[377921479,1754613193410,-633.1,0.00023561,2]
[377921480,1754613193420,-400.0,0.00023561,2]
[377921481,1754613193430,-803.71,0.00023561,2]
[377921482,1754613193440,-436.39,0.00023561,2]
[377921483,1754613193449,-408.97,0.00023561,2]
[377921484,1754613193459,-1211.14,0.00023561,2]
[377921485,1754613193470,-832.28,0.00023561,2]
[377921486,1754613193480,-424.31516725,0.00023561,2]
[377921487,1754613193490,-634.61,0.00023561,2]
[377921488,1754613193501,-1042.43,0.00023561,2]
[377921489,1754613193510,-411.96,0.00023561,2]
[377921490,1754613193521,-707.32,0.00023561,2]
[377921491,1754613193531,-455.66,0.00023561,2]
[377921492,1754613193541,-854.23,0.00023561,2]
[377921493,1754613193552,-9366.87,0.00023561,2]
[377921494,1754613193561,-484.41,0.00023561,2]
[377921495,1754613193571,-801.68,0.00023561,2]
[377921496,1754613193581,-1513.02,0.00023561,2]
[377921497,1754613193592,-447.08,0.00023561,2]
[377921498,1754613193602,-400.0,0.00023561,2]
[377921499,1754613193612,-400.0,0.00023561,2]
[377921500,1754613193622,-1785.26,0.00023561,2]
[377921501,1754613193634,-1103.08,0.00023561,2]
[377921502,1754613193645,-1209.1,0.00023561,2]
[377921503,1754613193656,-400.0,0.00023561,2]
[377921504,1754613193667,-512.05,0.00023561,2]
[377921505,1754613193676,-837.98,0.00023561,2]
[377921506,1754613193686,-588.83,0.00023561,2]
[377921507,1754613193697,-1005.96,0.00023561,2]
[377921508,1754613193707,-1338.39,0.00023561,2]
[377921509,1754613193718,-1973.33,0.00023561,2]
[377921510,1754613193730,-467.43,0.00023561,2]
[377921511,1754613193739,-969.26,0.00023561,2]
[377921512,1754613193750,-602.9,0.00023561,2]
[377921513,1754613193760,-1304.83,0.00023561,2]
[377921514,1754613193771,-2027.86,0.00023561,2]
[377921515,1754613193781,-703.47,0.00023561,2]
[377921516,1754613193792,-688.65,0.00023561,2]
[377921517,1754613193801,-1312.78,0.00023561,2]
[377921518,1754613193812,-2100.2,0.00023561,2]
[377921519,1754613193822,-1134.28,0.00023561,2]
[377921520,1754613193832,-1569.86,0.00023561,2]
[377921521,1754613193841,-1383.67,0.00023561,2]
[377921522,1754613193851,-529.24,0.00023561,2]
[377921523,1754613193861,-812.54,0.00023561,2]
[377921524,1754613193874,-871.51,0.00023561,2]
[377921525,1754613193884,-801.5,0.00023561,2]
[377921526,1754613193894,-603.98,0.00023561,2]
[377921527,1754613193903,-755.43,0.00023561,2]
[377921528,1754613193914,-1094.56,0.00023561,2]
[377921529,1754613193925,-1864.15,0.00023561,2]
[377921530,1754613193935,-744.46,0.00023561,2]
[377921531,1754613193946,-1856.19,0.00023561,2]
[377921532,1754613193958,-574.05,0.00023561,2]
[377921533,1754613193968,-400.0,0.00023561,2]
[377921534,1754613193978,-2819.61,0.00023561,2]
[377921535,1754613193987,-963.74,0.00023561,2]
[377921536,1754613193997,-400.0,0.00023561,2]
[377921537,1754613194007,-641.78,0.00023561,2]
[377921538,1754613194017,-400.0,0.00023561,2]
[377921539,1754613194027,-421.69,0.00023561,2]
[377921540,1754613194037,-711.52,0.00023561,2]
[377921541,1754613194047,-400.0,0.00023561,2]
[377921542,1754613194057,-1482.22,0.00023561,2]
[377921543,1754613194067,-1692.64,0.00023561,2]
[377921544,1754613194078,-1130.98,0.00023561,2]
[377921545,1754613194088,-400.0,0.00023561,2]
[377921546,1754613194098,-561.73,0.00023561,2]
[377921547,1754613194109,-400.0,0.00023561,2]
[377921548,1754613194119,-9960.13,0.00023561,2]
[377921549,1754613194129,-500.34,0.00023561,2]
[377921550,1754613194140,-606.66,0.00023561,2]
[377921551,1754613194150,-196.36358072,0.00023561,2]
[377921552,1754613194159,-546.64,0.00023561,2]
[377921553,1754613194169,-1592.3,0.00023561,2]
[377921554,1754613194179,-400.0,0.00023561,2]
[377921555,1754613194189,-2507.14,0.00023561,2]
[377921556,1754613194200,-1471.57,0.00023561,2]
[377921557,1754613194210,-1316.78,0.00023561,2]
[377921558,1754613194219,-1758.45,0.00023561,2]
[377921559,1754613194229,-1144.53,0.00023561,2]
[377921560,1754613194239,-1555.78,0.00023561,2]
[377921561,1754613194249,-1450.07,0.00023561,2]
[377921562,1754613194261,-567.89,0.00023561,2]
[377921563,1754613194271,-416.35,0.00023561,2]
[377921564,1754613194280,-973.9,0.00023561,2]
[377921565,1754613194290,-2230.25,0.00023561,2]
[377921566,1754613194299,-1577.14,0.00023561,2]
[377921567,1754613194309,-1658.19,0.00023561,2]
[377921568,1754613194319,-1949.39,0.00023561,2]
[377921569,1754613194330,-2189.36,0.00023561,2]
[377921570,1754613194341,-544.97,0.00023561,2]
[377921571,1754613194350,-400.0,0.00023561,2]
[377921572,1754613194360,-1736.77,0.00023561,2]
[377921573,1754613194370,-1506.04,0.00023561,2]
[377921574,1754613194380,-1668.74,0.00023561,2]
[377921575,1754613194389,-400.0,0.00023561,2]
[377921576,1754613194399,-723.41,0.00023561,2]
[377921577,1754613194409,-527.26,0.00023561,2]
[377921578,1754613194420,-1222.43,0.00023561,2]
[377921579,1754613194443,-2004.13,0.00023561,2]
[377921580,1754613194452,-1196.36,0.00023561,2]
[377921581,1754613194464,-444.47,0.00023561,2]
[377921582,1754613194474,-554.57,0.00023561,2]
[377921583,1754613194483,-1393.06,0.00023561,2]
[377921584,1754613194493,-1109.06,0.00023561,2]
[377921585,1754613194502,-624.86,0.00023561,2]
[377921586,1754613194512,-2031.25,0.00023561,2]
[377921587,1754613194522,-1290.07,0.00023561,2]
[377921588,1754613194531,-469.16,0.00023561,2]
[377921589,1754613194541,-1460.91,0.00023561,2]
[377921590,1754613194551,-2592.74,0.00023561,2]
[377921591,1754613194561,-2043.58,0.00023561,2]
[377921592,1754613194572,-2666.29,0.00023561,2]
[377921593,1754613194582,-1164.41,0.00023561,2]
[377921594,1754613194592,-1333.93,0.00023561,2]
[377921595,1754613194601,-694.8,0.00023561,2]
[377921596,1754613194611,-750.53,0.00023561,2]
[377921597,1754613194621,-631.92,0.00023561,2]
[377921598,1754613194632,-518.35,0.00023561,2]
[377921599,1754613194641,-1164.69,0.00023561,2]
[377921600,1754613194651,-2811.47,0.00023561,2]
[377921601,1754613194662,-465.25,0.00023561,2]
[377921602,1754613194671,-543.99,0.00023561,2]
[377921603,1754613194996,-1133.55,0.00023561,2]
[377921604,1754613195011,-1818.01,0.00023561,2]
[377921605,1754613195022,-680.98,0.00023561,2]
[377921606,1754613195032,-4407.12,0.00023561,2]
[377921607,1754613195042,-1288.12,0.00023561,2]
[377921608,1754613195054,-1275.65,0.00023561,2]
[377921609,1754613195064,-961.95,0.00023561,2]
[377921610,1754613195075,-453.21,0.00023561,2]
[377921611,1754613195085,-400.0,0.00023561,2]
[377921612,1754613195097,-1714.38,0.00023561,2]
[377921613,1754613195109,-879.97,0.00023561,2]
[377921614,1754613195124,-400.0,0.00023561,2]
[377921615,1754613195136,-1117.23,0.00023561,2]
[377921616,1754613195148,-1989.79,0.00023561,2]
[377921617,1754613195158,-1604.94,0.00023561,2]
[377921618,1754613195168,-1383.67,0.00023561,2]
[377921619,1754613195178,-633.58,0.00023561,2]
[377921620,1754613195188,-1105.6,0.00023561,2]
[377921621,1754613195198,-426.59,0.00023561,2]
[377921622,1754613195207,-326.03378858,0.00023561,2]
[377921623,1754613195216,-446.1,0.00023561,2]
[377921624,1754613195226,-1061.62,0.00023561,2]
[377921625,1754613195235,-2286.48,0.00023561,2]
[377921626,1754613195245,-1419.58,0.00023561,2]
[377921627,1754613195256,-608.07,0.00023561,2]
[377921628,1754613195267,-1349.34,0.00023561,2]
[377921629,1754613195277,-1214.9,0.00023561,2]
[377921630,1754613195288,-994.63,0.00023561,2]
[377921631,1754613195299,-2503.56,0.00023561,2]
[377921632,1754613195309,-668.68,0.00023561,2]
[377921633,1754613195319,-2034.76,0.00023561,2]
[377921634,1754613195329,-578.7,0.00023561,2]
[377921635,1754613195339,-1276.94,0.00023561,2]
[377921636,1754613195349,-400.0,0.00023561,2]
[377921637,1754613195358,-1646.26,0.00023561,2]
[377921638,1754613195368,-1889.62,0.00023561,2]
[377921639,1754613195378,-1501.0,0.00023561,2]
[377921640,1754613195388,-1528.92,0.00023561,2]
[377921641,1754613195399,-1025.64,0.00023561,2]
[377921642,1754613195408,-2128.65,0.00023561,2]
[377921643,1754613195418,-547.41,0.00023561,2]
[377921644,1754613195428,-1086.24,0.00023561,2]
[377921645,1754613195437,-400.0,0.00023561,2]
[377921646,1754613195447,-607.0,0.00023561,2]
[377921647,1754613195458,-1492.79,0.00023561,2]
[377921648,1754613195468,-1345.75,0.00023561,2]
[377921649,1754613195478,-420.32,0.00023561,2]
[377921650,1754613195488,-1120.37,0.00023561,2]
[377921651,1754613195498,-489.48,0.00023561,2]
[377921652,1754613195507,-1434.86,0.00023561,2]
[377921653,1754613195518,-1951.53,0.00023561,2]
[377921654,1754613195527,-2325.69,0.00023561,2]
[377921655,1754613195537,-1065.9,0.00023561,2]
[377921656,1754613195548,-917.26,0.00023561,2]
[377921657,1754613195557,-400.0,0.00023561,2]
[377921658,1754613195567,-1376.02,0.00023561,2]
[377921659,1754613195577,-1151.09,0.00023561,2]
[377921660,1754613195587,-400.0,0.00023561,2]
[377921661,1754613195596,-1350.78,0.00023561,2]
[377921662,1754613195606,-1657.63,0.00023561,2]
[377921663,1754613195617,-1848.96,0.00023561,2]
[377921664,1754613195626,-400.0,0.00023561,2]
[377921665,1754613195638,-1409.09,0.00023561,2]
[377921666,1754613195648,-451.49,0.00023561,2]
[377921667,1754613195658,-400.0,0.00023561,2]
[377921668,1754613195669,-2074.91,0.00023561,2]
[377921669,1754613195679,-608.66,0.00023561,2]
[377921670,1754613195689,-1826.78,0.00023561,2]
[377921671,1754613195699,-376.43381465,0.00023561,2]
[377921672,1754613195708,-2222.15,0.00023561,2]
[377921673,1754613195718,-1400.02,0.00023561,2]
[377921674,1754613195727,-1588.59,0.00023561,2]
[377921675,1754613195737,-400.0,0.00023561,2]
[377921676,1754613195747,-1119.1,0.00023561,2]
[377921677,1754613195758,-880.06,0.00023561,2]
[377921678,1754613195767,-1481.84,0.00023561,2]
[377921679,1754613195778,-1688.74,0.00023561,2]
[377921680,1754613195788,-2547.87,0.00023561,2]
[377921681,1754613195798,-1888.11,0.00023561,2]
[377921682,1754613195808,-1345.58,0.00023561,2]
[377921683,1754613195818,-1803.23,0.00023561,2]
[377921684,1754613195828,-3068.61,0.00023561,2]
[377921685,1754613195838,-846.92,0.00023561,2]
[377921686,1754613195848,-3553.23,0.00023561,2]
[377921687,1754613195858,-1278.15,0.00023561,2]
[377921688,1754613195869,-2027.95,0.00023561,2]
[377921689,1754613195880,-2016.9,0.00023561,2]
[377921690,1754613195890,-1857.98,0.00023561,2]
[377921691,1754613195900,-1218.73,0.00023561,2]
[377921692,1754613195909,-1934.76,0.00023561,2]
[377921693,1754613195923,-633.24,0.00023561,2]
[377921694,1754613195933,-2106.04,0.00023561,2]
[377921695,1754613195943,-1410.86,0.00023561,2]
[377921696,1754613195955,-881.02,0.00023561,2]
[377921697,1754613195965,-1461.11,0.00023561,2]
[377921698,1754613195975,-2341.65,0.00023561,2]
[377921699,1754613195985,-400.0,0.00023561,2]
[377921700,1754613195995,-1720.55,0.00023561,2]
[377921701,1754613196005,-400.0,0.00023561,2]
[377921702,1754613196015,-1452.03,0.00023561,2]
[377921703,1754613196025,-1620.97,0.00023561,2]
[377921704,1754613196035,-496.68,0.00023561,2]
[377921705,1754613196045,-634.15,0.00023561,2]
[377921706,1754613196055,-2144.18,0.00023561,2]
[377921707,1754613196065,-1617.17,0.00023561,2]
[377921708,1754613196074,-558.88,0.00023561,2]
[377921709,1754613196084,-2107.78,0.00023561,2]
[377921710,1754613196094,-400.0,0.00023561,2]
[377921711,1754613196103,-2615.62,0.00023561,2]
[377921712,1754613196114,-749.36,0.00023561,2]
[377921713,1754613196123,-1657.01,0.00023561,2]
[377921714,1754613196133,-1646.42,0.00023561,2]
[377921715,1754613196143,-1193.46,0.00023561,2]
[377921716,1754613196152,-2388.63,0.00023561,2]
[377921717,1754613196162,-400.0,0.00023561,2]
[377921718,1754613196175,-1288.88,0.00023561,2]
[377921719,1754613196185,-2311.16,0.00023561,2]
[377921720,1754613196195,-2350.74,0.00023561,2]
[377921721,1754613196205,-1822.62,0.00023561,2]
[377921722,1754613196214,-612.27,0.00023561,2]
[377921723,1754613196224,-1810.11,0.00023561,2]
[377921724,1754613196233,-1537.46,0.00023561,2]
[377921725,1754613196243,-1369.16,0.00023561,2]
[377921726,1754613196252,-511.54,0.00023561,2]
[377921727,1754613196261,-482.95,0.00023561,2]
[377921728,1754613196270,-2136.59,0.00023561,2]
[377921729,1754613196280,-400.0,0.00023561,2]
[377921730,1754613196290,-1248.2,0.00023561,2]
[377921731,1754613196299,-1594.51,0.00023561,2]
[377921732,1754613196309,-483.64,0.00023561,2]
[377921733,1754613196319,-1205.01,0.00023561,2]
[377921734,1754613196327,-1678.28,0.00023561,2]
[377921735,1754613196337,-893.25,0.00023561,2]
[377921736,1754613196346,-5670.63,0.00023561,2]
[377921737,1754613196355,-845.84,0.00023561,2]
[377921738,1754613196364,-1256.8,0.00023561,2]
[377921739,1754613196373,-663.05,0.00023561,2]
[377921740,1754613196382,-2578.27,0.00023561,2]
[377921741,1754613196392,-1440.32,0.00023561,2]
[377921742,1754613196401,-738.95,0.00023561,2]
[377921743,1754613196410,-575.03,0.00023561,2]
[377921744,1754613196420,-2047.45,0.00023561,2]
[377921745,1754613196429,-2097.6,0.00023561,2]
[377921746,1754613196438,-500.07,0.00023561,2]
[377921747,1754613196448,-1244.17,0.00023561,2]
[377921748,1754613196458,-422.96,0.00023561,2]
[377921749,1754613196468,-759.15,0.00023561,2]
[377921750,1754613196477,-1757.73,0.00023561,2]
[377921751,1754613196487,-1316.97,0.00023561,2]
[377921752,1754613196497,-1321.01,0.00023561,2]
[377921753,1754613196507,-454.26,0.00023561,2]
[377921754,1754613196516,-3377.08,0.00023561,2]
[377921755,1754613196528,-1895.55,0.00023561,2]
[377921756,1754613196538,-1208.59,0.00023561,2]
[377921757,1754613196547,-1065.6,0.00023561,2]
[377921758,1754613196556,-671.01,0.00023561,2]
[377921759,1754613196566,-1206.78,0.00023561,2]
[377921760,1754613196575,-2465.13,0.00023561,2]
[377921761,1754613196584,-930.4,0.00023561,2]
[377921762,1754613196594,-2359.49,0.00023561,2]
[377921763,1754613196604,-916.62,0.00023561,2]
[377921764,1754613196614,-1926.69,0.00023561,2]
[377921765,1754613196623,-1712.73,0.00023561,2]
[377921766,1754613196633,-831.18,0.00023561,2]
[377921767,1754613196643,-458.34,0.00023561,2]
[377921768,1754613196653,-1982.51,0.00023561,2]
[377921769,1754613196663,-1225.08,0.00023561,2]
[377921770,1754613196672,-1138.89,0.00023561,2]
[377921771,1754613196682,-2026.14,0.00023561,2]
[377921772,1754613196692,-1259.99,0.00023561,2]
[377921773,1754613196701,-785.6,0.00023561,2]
[377921774,1754613196711,-821.3,0.00023561,2]
[377921775,1754613196721,-1205.32,0.00023561,2]
[377921776,1754613196731,-1835.44,0.00023561,2]
[377921777,1754613196740,-517.59,0.00023561,2]
[377921778,1754613196750,-1444.0,0.00023561,2]
[377921779,1754613196760,-720.69,0.00023561,2]
[377921780,1754613196769,-2627.0,0.00023561,2]
[377921781,1754613196779,-1785.88,0.00023561,2]
[377921782,1754613196788,-1057.29,0.00023561,2]
[377921783,1754613196798,-594.32,0.00023561,2]
[377921784,1754613196807,-737.52,0.00023561,2]
[377921785,1754613196817,-782.04,0.00023561,2]
[377921786,1754613196827,-760.17,0.00023561,2]
[377921787,1754613196837,-1256.19,0.00023561,2]
[377921788,1754613196847,-1213.52,0.00023561,2]
[377921789,1754613196857,-1326.52,0.00023561,2]
[377921790,1754613196867,-2043.3,0.00023561,2]
[377921791,1754613196877,-400.0,0.00023561,2]
[377921792,1754613196888,-2287.32,0.00023561,2]
[377921793,1754613196898,-1429.55,0.00023561,2]
[377921794,1754613196907,-1328.2,0.00023561,2]
[377921795,1754613196920,-1087.69,0.00023561,2]
[377921796,1754613196929,-718.93,0.00023561,2]
[377921797,1754613196939,-400.0,0.00023561,2]
[377921798,1754613196949,-2952.54,0.00023561,2]
[377921799,1754613196960,-1291.71,0.00023561,2]
[377921800,1754613196971,-1573.48,0.00023561,2]
[377921801,1754613196981,-507.81,0.00023561,2]
[377921802,1754613196991,-2109.97,0.00023561,2]
[377921803,1754613197001,-1998.91,0.00023561,2]
[377921804,1754613197011,-1129.91,0.00023561,2]
[377921805,1754613197020,-1425.93,0.00023561,2]
[377921806,1754613197030,-662.71,0.00023561,2]
[377921807,1754613197039,-921.79,0.00023561,2]
[377921808,1754613197049,-1164.62,0.00023561,2]
[377921809,1754613197059,-2405.69,0.00023561,2]
[377921810,1754613197068,-620.84,0.00023561,2]
[377921811,1754613197078,-780.96,0.00023561,2]
[377921812,1754613197087,-1165.14,0.00023561,2]
[377921813,1754613197099,-918.26,0.00023561,2]
[377921814,1754613197108,-2947.95,0.00023561,2]
[377921815,1754613197118,-1258.15,0.00023561,2]
[377921816,1754613197128,-876.19,0.00023561,2]
[377921817,1754613197138,-478.79,0.00023561,2]
[377921818,1754613197147,-599.75,0.00023561,2]
[377921819,1754613197157,-1217.16,0.00023561,2]
[377921820,1754613197167,-1553.23,0.00023561,2]
[377921821,1754613197181,-2199.42,0.00023561,2]
[377921822,1754613197191,-21934.36,0.00023561,2]
[377921823,1754613197200,-2212.98,0.00023561,2]
[377921824,1754613197210,-1718.94,0.00023561,2]
[377921825,1754613197219,-1128.21,0.00023561,2]
[377921826,1754613197229,-400.0,0.00023561,2]
[377921827,1754613197239,-454.14,0.00023561,2]
[377921828,1754613197249,-913.11,0.00023561,2]
[377921829,1754613197258,-2805.22,0.00023561,2]
[377921830,1754613197269,-484.16,0.00023561,2]
[377921831,1754613197278,-1717.22,0.00023561,2]
[377921832,1754613197287,-674.02,0.00023561,2]
[377921833,1754613197297,-541.32344295,0.00023561,2]
[377921834,1754613197307,-3589.91,0.00023561,2]
[377921835,1754613197316,-445.14,0.00023561,2]
[377921836,1754613197326,-2525.21,0.00023561,2]
[377921837,1754613197335,-1638.11,0.00023561,2]
[377921838,1754613197345,-1662.56,0.00023561,2]
[377921839,1754613197354,-820.59,0.00023561,2]
[377921840,1754613197363,-400.0,0.00023561,2]
[377921841,1754613197373,-1890.31,0.00023561,2]
[377921842,1754613197382,-600.51,0.00023561,2]
[377921843,1754613197392,-1179.5,0.00023561,2]
[377921844,1754613197402,-674.63,0.00023561,2]
[377921845,1754613197411,-2338.84,0.00023561,2]
[377921846,1754613197424,-2335.94,0.00023561,2]
[377921847,1754613197550,-1234.92,0.00023561,2]
[377921848,1754613197561,-1814.44,0.00023561,2]
[377921849,1754613197570,-5688.95,0.00023561,2]
[377921850,1754613197579,-862.72,0.00023561,2]
[377921851,1754613197590,-1880.9,0.00023561,2]
[377921852,1754613197599,-1651.16,0.00023561,2]
[377921853,1754613197609,-400.0,0.00023561,2]
[377921854,1754613197618,-480.51,0.00023561,2]
[377921855,1754613197628,-1525.3,0.00023561,2]
[377921856,1754613197639,-707.51,0.00023561,2]
[377921857,1754613197649,-374.0,0.00023562,7]
[377921858,1754613197658,-153.36792099,0.00023562,2]
[377921859,1754613197668,-1009.77647911,0.00023655,2]
[377921860,1754613197684,-309.29654756,0.00023665,2]
[377921861,1754613197694,-500.0,0.00023681,2]
[377921862,1754613197703,-298.50938007,0.00023735,2]
[377921863,1754613197713,-4000.0,0.00023748,7]
[377921864,1754613197722,-330.46,0.00023769,2]
[377921865,1754613197733,-152.0,0.00023769,12]
[377921866,1754613197743,-457.55740054,0.000238,7]
[377921867,1754613197753,-211.58213282,0.000238,7]
[377921868,1754613197763,-1770.72,0.00023822,2]
[377921869,1754613197772,-2033.74,0.00023822,2]
[377921870,1754613197782,-1928.95,0.00023822,2]
[377921871,1754613197791,-1964.46,0.00023822,2]
[377921872,1754613197802,-1517.59,0.00023822,2]
[377921873,1754613197811,-2517.35,0.00023822,2]
[377921874,1754613197822,-3417.84,0.00023822,2]
[377921875,1754613197831,-400.0,0.00023835,2]
[377921876,1754613197841,-413.9,0.00023835,2]
[377921877,1754613197851,-491.72,0.00023835,2]
[377921878,1754613197861,-1398.87,0.00023835,2]
[377921879,1754613197871,-1031.25,0.00023835,2]
[377921880,1754613197884,-984.93,0.00023835,2]
[377921881,1754613197894,-565.33,0.00023835,2]
[377921882,1754613197903,-1073.05,0.00023835,2]
[377921883,1754613197912,-1178.77,0.00023835,2]
[377921884,1754613197925,-828.34,0.00023835,2]
[377921885,1754613197935,-400.0,0.00023835,2]
[377921886,1754613197944,-400.0,0.00023835,2]
[377921887,1754613197954,-812.28,0.00023835,2]
[377921888,1754613197964,-927.28,0.00023835,2]
[377921889,1754613197974,-953.96,0.00023835,2]
[377921890,1754613197983,-861.71,0.00023835,2]
[377921891,1754613197993,-400.0,0.00023835,2]
[377921892,1754613198003,-802.6,0.00023835,2]
[377921893,1754613198013,-580.75,0.00023835,2]
[377921894,1754613198024,-400.0,0.00023835,2]
[377921895,1754613198034,-571.8,0.00023835,2]
[377921896,1754613198044,-400.0,0.00023835,2]
[377921897,1754613198055,-1017.49,0.00023835,2]
[377921898,1754613198065,-480.71,0.00023835,2]
[377921899,1754613198075,-403.89,0.00023835,2]
[377921900,1754613198086,-400.0,0.00023835,2]
[377921901,1754613198096,-1379.73,0.00023835,2]
[377921902,1754613198107,-1290.36,0.00023835,2]
[377921903,1754613198118,-400.0,0.00023835,2]
[377921904,1754613198129,-560.12,0.00023835,2]
[377921905,1754613198139,-1326.45,0.00023835,2]
[377921906,1754613198149,-1037.58,0.00023835,2]
[377921907,1754613198159,-570.53,0.00023835,2]
[377921908,1754613198169,-551.88,0.00023835,2]
[377921909,1754613198184,-624.79,0.00023835,2]
[377921910,1754613198194,-459.48,0.00023835,2]
[377921911,1754613198203,-912.6,0.00023835,2]
[377921912,1754613198213,-453.86,0.00023835,2]
[377921913,1754613198222,-845.43,0.00023835,2]